Cogmind - Beta 12 @@@ ROGUE MODE // 2023.05.25 @ 22:51:55 Player: archydragon Result: Core destroyed Performance ------------- Evolutions (2) 1000 Regions Visited (4) 800 Robots Destroyed (17) 85 Value Destroyed (571) 571 Prototype IDs (5) 100 Alien Tech Used (0) 0 Bonus (7) 7 TOTAL SCORE: 2563 Bonus ------- Follower Combat Kills 7 Cogmind --------- Core Integrity 0/550 Matter 181/300 Energy 24/100 System Corruption 0% Temperature Critical (500) Movement Core (400) Ox7 Location -8/Materials Parts ------- > --- POWER (1) -------- (None) > --- PROPULSION (2) --- (None) > --- UTILITY (5) ------ Large Storage Unit Visual Processing Unit Signal Interpreter > --- WEAPON (3) ------- Particle Gun > --- INVENTORY (15) --- Compact Battery (200) Compact Matter Pod (150) Improved Signal Interpreter Hardlight Generator Faulty Heavy Particle Gun Light EM Pulse Cannon Datajack Peak State ------------ > --- POWER ------------ Heavy Ion Engine > --- PROPULSION ------- Aluminum Leg Aluminum Leg > --- UTILITY ---------- Large Storage Unit Weight Redist. System Visual Processing Unit Medium Armor Plating Hardlight Generator > --- WEAPON ----------- Medium Laser Beam Rifle Heavy Particle Gun > --- INVENTORY -------- Light Ion Engine Carbon-fiber Leg Heat Sink Compact Battery Compact Matter Pod Signal Interpreter Improved Signal Interpreter Particle Gun Field Laser Light EM Pulse Cannon Light EM Pulse Cannon Flak Cannon Datajack [Rating: 24] Favorites ----------- Power Ion Engine Engine Ion Engine Propulsion Compact Wheel Leg Aluminum Leg Wheel Compact Wheel Utility Targeting Computer Device Weight Redist. System Storage Large Storage Unit Processor Targeting Computer Protection Medium Armor Plating Weapon Light Assault Rifle Energy Gun Medium Laser Energy Cannon Light EM Pulse Cannon Ballistic Gun Light Assault Rifle Ballistic Cannon Flak Cannon Build | -11 -10 -9 -9 -8 ------- Run | Jun Mat Mat Min Mat Slots Evolved 4 | . . 2 . 2 Power . | . . . . . Propulsion . | . . . . . Utility 3 | . . 2 . 1 Weapon 1 | . . . . 1 Parts Attached 35 | 6 3 4 2 20 Power 6 | 1 . 1 1 3 Engine 6 | 1 . 1 1 3 Core . | . . . . . Reactor . | . . . . . Propulsion 6 | 2 . . . 4 Treads . | . . . . . Leg 3 | . . . . 3 Wheel 3 | 2 . . . 1 Hover . | . . . . . Flight . | . . . . . Utility 12 | 1 3 2 . 6 Device 6 | . 1 2 . 3 Storage 2 | 1 1 . . . Processor 3 | . 1 . . 2 Hackware . | . . . . . Protection 1 | . . . . 1 Artifact . | . . . . . Weapon 11 | 2 . 1 1 7 Energy Gun 7 | . . 1 1 5 Energy Cannon 1 | . . . . 1 Ballistic Gun 2 | 2 . . . . Ballistic Cannon 1 | . . . . 1 Launcher . | . . . . . Special Weapon . | . . . . . Impact Weapon . | . . . . . Slashing Weapon . | . . . . . Piercing Weapon . | . . . . . Special Melee Weapon . | . . . . . Unidentified Prototypes 1 | . . . . 1 Parts Lost 18 | . . 1 . 17 Power 4 | . . 1 . 3 Propulsion 4 | . . . . 4 Utility 5 | . . . . 5 Weapon 5 | . . . . 5 Highest Loss Streak 13 | . . 1 . 13 To Critical Strikes . | . . . . . Average Slot Usage (%) 97 | . 99 97 100 95 Engine 10 | . 14 9 11 8 Leg 4 | . . . . 14 Wheel 16 | . 28 22 22 2 Device 15 | . . 20 22 16 Storage 10 | . 14 11 11 9 Processor 13 | . 12 11 11 16 Energy Gun 11 | . . 1 13 25 Ballistic Gun 12 | . 28 20 8 . Naked Turns . | . . . . . Heaviest Build 48 | 11 26 29 29 48 Greatest Support 38 | 32 32 38 38 38 Greatest Overweight (x) 9 | . . . . 9 Average Overweight (x) . | . . . . . Largest Inventory Capacity 15 | 8 15 15 15 15 Average Capacity 13 | 6 11 15 15 15 Most Carried 15 | 6 9 15 15 15 Average Carried 11 | 3 8 11 14 13 Final Capacity 15 | 8 15 15 15 15 Final Carried 14 | 4 9 14 14 7 Class Distribution -------------------- 67% | Mutant 26% | Skirmisher 5% | Tank Dominant Class ---------------- Mutant | -10/Materials Mutant | -9/Materials Mutant | -9/Mines Skirmisher | -8/Materials Resources | -11 -10 -9 -9 -8 ----------- Run | Jun Mat Mat Min Mat Matter Collected 542 | 260 28 163 26 65 Remotely . | . . . . . Salvage Created 638 | . 27 287 30 294 Parts 31 | . 3 18 3 7 Haulers Intercepted . | . . . . . Recyclers Shooed . | . . . . . Parts Field Recycled . | . . . . . Retrieved Matter . | . . . . . Parts Self-Destructed . | . . . . . Prevented . | . . . . . Kills | -11 -10 -9 -9 -8 ------- Run | Jun Mat Mat Min Mat Combat Hostiles Destroyed 13 | . . 6 2 5 Guns 11 | . . 6 2 3 Cannons 1 | . . . . 1 Classes Destroyed 6 | . 1 2 1 2 Watcher 4 | . 1 1 . 2 Swarmer 2 | . . . 2 . Grunt 7 | . . 5 . 2 Duelist 1 | . . . . 1 Sentry 2 | . . 1 . 1 Hunter 1 | . . . . 1 Best Kill Streak 2 | . 1 2 2 2 Combat Bots Only 2 | . . 2 2 2 Max Kills in Single Turn 1 | . 1 1 1 1 Gunslinging . | . . . . . Exploded . | . . . . . Melee . | . . . . . Uniques/NPCs Destroyed . | . . . . . Combat | -11 -10 -9 -9 -8 -------- Run | Jun Mat Mat Min Mat Damage Taken 2546 | . . 303 175 2068 Core 741 | . . 91 58 592 Absorbed by Shields . | . . . . . Core Remaining (%) 87 | 100 100 . 62 . Volleys Fired 79 | . 4 30 7 38 Largest 3 | . 2 2 2 3 Hottest 175 | . 40 40 90 175 Shots Fired 158 | . 8 60 14 76 Gun 144 | . 8 60 14 62 Cannon 14 | . . . . 14 Launcher . | . . . . . Special . | . . . . . Kinetic 76 | . 8 60 6 2 Thermal 70 | . . . 8 62 Explosive . | . . . . . Electromagnetic 12 | . . . . 12 Robot Hit Streak 11 | . 2 10 11 6 Robot Miss Streak 3 | . 2 2 2 3 Penetration Max . | . . . . . Secondary Targets 2 | . . . 1 1 Max Gunslinging Chain 1 | . . . 1 1 Shots Hit Robots 104 | . 3 43 9 49 Core Hits 44 | . 2 15 3 24 Critical Kills 2 | . . 2 . . Critical Parts Destroyed 1 | . . 1 . . Critical Strikes 8 | . . 3 . 5 Burn 5 | . . . . 5 Destroy 3 | . . 3 . . Melee Attacks . | . . . . . Impact . | . . . . . Slashing . | . . . . . Piercing . | . . . . . Sneak Attacks . | . . . . . Combat Hostiles . | . . . . . Follow-up Attacks . | . . . . . Damage Inflicted 1408 | . 30 461 109 808 Guns 1159 | . 30 456 94 579 Cannons 229 | . . . . 229 Explosions . | . . . . . Melee . | . . . . . Ramming 20 | . . 5 15 . Kinetic 593 | . 30 456 31 76 Thermal 642 | . . . 63 579 Explosive . | . . . . . Electromagnetic 153 | . . . . 153 Impact . | . . . . . Slashing . | . . . . . Piercing . | . . . . . Highest Corruption . | . . . . . Average Corruption . | . . . . . Corruption Purged . | . . . . . Corruption Blocked . | . . . . . Overload Shots . | . . . . . Overflow Damage 7 | . . . . 7 Projectiles 7 | . . . . 7 Explosions . | . . . . . Melee . | . . . . . Knockbacks . | . . . . . Impact . | . . . . . Kinetic . | . . . . . Secondary . | . . . . . Self-Inflicted Damage 9 | . . 2 7 . Shots . | . . . . . Rammed 4 | . . 3 1 . Targets Rammed 4 | . . 3 1 . Kicked . | . . . . . Crushed . | . . . . . Highest Temperature 500 | . . 19 52 500 Average Temperature 159 | . . 5 18 193 Received Heat Transfer 1182 | . . 165 18 999 Effects 5 | . . . . 5 Shutdowns 1 | . . . . 1 Energy Bleed 1 | . . . . 1 Matter Decay 1 | . . . . 1 Damage (minor) 1 | . . . . 1 Damage (core) 1 | . . . . 1 Siege Activations . | . . . . . Robots Corrupted . | . . . . . Combat Hostiles . | . . . . . Parts Fried 1 | . . . . 1 Impact Corruptions . | . . . . . Robots Melted 1 | . . . . 1 Combat Hostiles 1 | . . . . 1 Parts Melted 7 | . . . 2 5 Heat Transferred 1980 | . . . 185 1795 Parts Sabotaged . | . . . . . Parts Stolen . | . . . . . Parts Stripped . | . . . . . Power Chain Reactions . | . . . . . Missiles Intercepted . | . . . . . Alert | -11 -10 -9 -9 -8 ------- Run | Jun Mat Mat Min Mat Peak Influence 174 | . 56 151 117 174 Initial 37 | . . . 28 37 Average 57 | . 28 58 47 85 Maximum Alert Level . | . . . . . Low Security (%) 100 | 100 100 100 100 100 Level 1 . | . . . . . Level 2 . | . . . . . Level 3 . | . . . . . Level 4 . | . . . . . Level 5 . | . . . . . High Security . | . . . . . Max Security . | . . . . . Squads Dispatched 4 | . 1 2 . 1 Investigation 2 | . . 1 . 1 Extermination . | . . . . . Reinforcement 2 | . 1 1 . . Assault . | . . . . . Garrison . | . . . . . Intercept . | . . . . . Searches Triggered . | . . . . . Construction Impeded . | . . . . . Haulers Reinforced . | . . . . . Active Scanning Responses . | . . . . . Cargo Convoy Interrupts . | . . . . . Stealth | -11 -10 -9 -9 -8 --------- Run | Jun Mat Mat Min Mat Distress Signals 1 | . . . . 1 Communications Jammed . | . . . . . Distress Signals . | . . . . . Times Spotted 46 | . 4 14 5 23 Peak Tracking Total 10 | . 2 4 3 10 Tactical Retreats 1 | . . 1 . . Traps | -11 -10 -9 -9 -8 ------- Run | Jun Mat Mat Min Mat Traps Triggered 1 | . . . . 1 Indirectly . | . . . . . Trap Hack Attempts . | . . . . . Triggered . | . . . . . Disarmed . | . . . . . Reprogrammed . | . . . . . Reused . | . . . . . Traps Extracted . | . . . . . Installed . | . . . . . Triggered . | . . . . . Machines | -11 -10 -9 -9 -8 ---------- Run | Jun Mat Mat Min Mat Machines Disabled . | . . . . . Max in Single Turn . | . . . . . Machines Repaired . | . . . . . Machines Sabotaged . | . . . . . Overloaded Fab Kills . | . . . . . Hacking | -11 -10 -9 -9 -8 --------- Run | Jun Mat Mat Min Mat Machines Accessed 10 | . 4 3 . 3 Terminals 9 | . 4 2 . 3 Fabricators . | . . . . . Repair Stations . | . . . . . Recycling Units . | . . . . . Scanalyzers 1 | . . 1 . . Garrison Access . | . . . . . Total Hacks 32 | . 11 11 . 10 Successful 22 | . 8 6 . 8 Failed 10 | . 3 5 . 2 Catastrophic . | . . . . . Database Lockouts . | . . . . . Manual . | . . . . . Terminals 27 | . 11 6 . 10 Fabricators . | . . . . . Repair Stations . | . . . . . Recycling Units . | . . . . . Scanalyzers 5 | . . 5 . . Garrison Access . | . . . . . Terminal Hacks 18 | . 8 2 . 8 Record 8 | . 3 . . 5 Robot Analysis 1 | . 1 . . . Prototype ID Bank 2 | . 1 . . 1 Terminal Index 2 | . 1 . . 1 Alert Level 2 | . 1 . . 1 Locate Traps 1 | . . 1 . . Zone Layout 2 | . 1 1 . . Fabricator Hacks . | . . . . . Repair Station Hacks . | . . . . . Recycling Unit Hacks . | . . . . . Scanalyzer 4 | . . 4 . . Insert Component 2 | . . 2 . . Analyze 2 | . . 2 . . Garrison Access Hacks . | . . . . . Unauthorized Hacks . | . . . . . Terminals . | . . . . . Fabricators . | . . . . . Repair Stations . | . . . . . Recycling Units . | . . . . . Scanalyzers . | . . . . . Garrison Access . | . . . . . Data Cores Recovered . | . . . . . Used . | . . . . . Hacking Detections 7 | . 2 3 . 2 Full Trace Events 3 | . 1 2 . . Feedback Events . | . . . . . Feedback Blocked . | . . . . . Robot Schematics Acquired . | . . . . . Robots Built . | . . . . . Authchips . | . . . . . Time . | . . . . . Total Robot Build Rating . | . . . . . Part Schematics Acquired 2 | . . 2 . . Parts Built . | . . . . . Authchips . | . . . . . Time . | . . . . . Total Part Build Rating . | . . . . . Parts Repaired . | . . . . . Time . | . . . . . Parts Recycled . | . . . . . Recycled Matter . | . . . . . Retrieved Matter . | . . . . . Retrieved Components . | . . . . . Parts Scanalyzed 2 | . . 2 . . Part Schematics Acquired 2 | . . 2 . . Parts Damaged . | . . . . . Bothacking | -11 -10 -9 -9 -8 ------------ Run | Jun Mat Mat Min Mat Used RIF Installer . | . . . . . Robots Hacked . | . . . . . Non-combat . | . . . . . Combat . | . . . . . Robot Hacks Applied . | . . . . . Relay Couplers Released . | . . . . . Fabnet Peak Effective % . | . . . . . Robots Rewired . | . . . . . Allies Hacked . | . . . . . Hacks Repelled . | . . . . . Allies | -11 -10 -9 -9 -8 -------- Run | Jun Mat Mat Min Mat Total Allies 1 | . . . 1 . Largest Group 1 | . . . 1 . Highest-Rated Group 31 | . . . 31 . Highest-Rated Ally 31 | . . . 31 . Total Orders . | . . . . . Ally Attacks 9 | . . . 9 . Total Damage 102 | . . . 102 . Kills 1 | . . . 1 . Allies Corrupted . | . . . . . Allies Melted . | . . . . . Intel | -11 -10 -9 -9 -8 ------- Run | Jun Mat Mat Min Mat Robot Analysis Total 1 | . 1 . . . Derelict Logs Recovered . | . . . . . Drone Launches . | . . . . . Drone Recoveries . | . . . . . Exploration | -11 -10 -9 -9 -8 ------------- Run | Jun Mat Mat Min Mat Turns Passed 1973 | 62 432 496 318 665 Spaces Moved 1445 | 45 407 393 291 309 Core 4 | 3 . . . 1 Treads . | . . . . . Legs 230 | . . . . 230 Wheels 1211 | 42 407 393 291 78 Hover . | . . . . . Flight . | . . . . . Fastest Speed 50 | 50 100 100 100 100 Average Speed 114 | 96 100 100 100 168 Slowest Speed 500 | 100 100 100 100 500 Overloaded Moves . | . . . . . Propulsion Burnouts . | . . . . . Robots Hopped . | . . . . . Cave-ins Triggered . | . . . . . Exploration Rate (%) 36 | 4 43 35 68 31 Regions Visited 4 Branch Regions 1 Pre-discovered Areas . | . . . . . Known Exits Taken . | . . . . . Unknown Exits Taken 4 | 1 1 1 1 . Scrap Searched . | . . . . . Spaces Dug . | . . . . . Terrain Destroyed . | . . . . . Melee . | . . . . . Projectile . | . . . . . AOE . | . . . . . Terrain Rammed . | . . . . . Walls Destroyed . | . . . . . Machines Disabled . | . . . . . Actions | -11 -10 -9 -9 -8 --------- Run | Jun Mat Mat Min Mat Total 1620 | 64 425 443 306 382 Wait . | . . . . . Move 1441 | 44 406 392 290 309 Hop . | . . . . . Pick Up 45 | 12 9 11 3 10 Fast Attach . | . . . . . Attach 24 | 6 1 4 1 12 Detach . | . . . . . Swap 11 | . 2 . 1 8 Drop 16 | 2 3 3 3 5 Fire 79 | . 4 30 7 38 Melee . | . . . . . Ram 4 | . . 3 1 . Kick . | . . . . . Crush . | . . . . . Escape Stasis . | . . . . . Rewire . | . . . . . Trap . | . . . . . Miscellaneous . | . . . . . Route ------- -11/Junkyard -10/Materials -9/Materials -9/Mines (discovered 2 exits: *Mat x2) -8/Materials History --------- Turn | Location | Event 17 | -11/Junkyard | Discovered new exit (range 16) 63 | -11/Junkyard | Entered Materials 246 | -10/Materials | Discovered new exit (range 16) 326 | -10/Materials | Build established: Mutant 495 | -10/Materials | Entered another Materials area 495 | -9/Materials | Evolved 2 slots: Utility x2 811 | -9/Materials | Discovered new exit (range 7) 991 | -9/Materials | Entered Mines 1017 | -9/Mines | Discovered new exit (range 8) 1130 | -9/Mines | Received a Rocket Launcher from a helpful Derelict 1149 | -9/Mines | Received a Mining Laser from a helpful Derelict 1207 | -9/Mines | Discovered new exit (range 5) 1309 | -9/Mines | Entered Materials 1309 | -8/Materials | Evolved 2 slots: Utility x1, Weapon x1 1609 | -8/Materials | Build established: Skirmisher 1858 | -8/Materials | Lost 3 parts (1p2u) 1956 | -8/Materials | Core integrity fell below 50% 1970 | -8/Materials | Core integrity fell below 20% 1975 | -8/Materials | Core destroyed Last Messages --------------- 01940_ Aluminum Leg destroyed. 01941_ Critical hit (Burn: +37). 01943_ K-01 Serf collects debris. 01949_ Hvy. Ion Engine destroyed. 01951_ K-01 Serf collects debris. 01952_ Heat Sink destroyed. 01956_ K-01 Serf collects debris. 01957_ Lgt. EM Pulse Cannon destroyed. 01959_ Carbon-fiber Leg destroyed. 01959_ Lgt. Ion Engine destroyed. 01961_ Overheating: Energy bleed (-6). 01964_ G-47 Trooper suffers critical hit (Burn). 01967_ W-25 Informer destroyed. 01969_ Critical hit (Burn: +37). 01970_ Overheating: Matter decay (-52). 01970_ Field Laser destroyed. 01971_ Flak Cannon destroyed. 01972_ Overheating: Lrg. Storage Unit damaged (-84). 01973_ Critical hit (Burn: +37). 01975_ Overheating: Core damaged (-66). Map ----- +----------------------------------------------------+ | ?????????????????????????????????????????????????# | | ?????????????????????????????????????????????????# | | ?????????????????????????????????????????????????# | | ?????????????????????????????????????????????????# | | ?????????????????????????????????????????????????# | | ?????????????????????????? ??????????????????????# | | ?????????????????????????? ??????????????????????# | | ?????????????????????????? ??????????????????????# | | ?????????????????????????? ??????????????????????# | | ?????????????????????????? ??????????????????????# | | ?????????????????????????? ??????????????????????? | | ?????????????????????????? ??????????????????????? | | ?????????????????????#####+####??????????????????? | | ?????????????????????# #??????????????????? | | ?????????????????????# #??????????????????? | | ?????????????????????# #??????????????????? | | ?????????????????????# #??????????????????? | | ?????????????????????# a #??????????????????? | | ?????????????????????# #??????????????????? | | ?????????????????????# #??????????????????? | | ?????????????????????? #??????????????????? | | ???????????????????????? g ????????????????##### | | ????????????????????????##g################### | | ???????????????##########gg a | | ??????????+ Ygg* % w | | ????????????????#########@! a | | ????????????????????????###################### | | ?????????????????????????????????????????????## | | ??????????????????????????????????????????????# | | ???????????????????????????#######????????????# | | ???????????????????????????# ############## | | ???????????????????????????# % | | ???????????????????????????# %= | | ???????????????????????????# | | ???????????????????????????# ###+########## | | ???????????????????????????## ## ?# # | | ????????????????????????????# ## # # | | ????????????????????????????# ## # # | | ????????????????????????????# ## # # | | ????????????????????????????# ## # + | | ????????????????????????????# ## # # | | ????????????????????????????# ######### ### | | ????????????????????????????# #???????# #?# | | ????????????????????????????# #???????# #?# | | ????????????????????????????# ######### #?# | | ????????????????????????????# + #?# | | ????????????????????????????# ###### #?# | | ????????????????????????????# # ####+##?# | | ????????????????????????????# + #??# #??# | | ?????????????????????????#####+###+# #??# #??# | +----------------------------------------------------+ Best States ------------- Heat Dissipation 41 Energy Generation 14 Energy Capacity 280 Matter Stores 300 Matter Capacity 300 Sight Range 18 Robot Scan Range 14 Terrain Scan Density 10 Additional Mass Support 6 Armor Coverage 225 Evasion (%) 40 Targeting Accuracy 5 Item Schematics ----------------- Lgt. Armor Plating | -9/Materials | Scanalyzed Hvy. Ion Engine | -9/Materials | Scanalyzed Robot Schematics ------------------ None Fabricated ------------ Nothing Alien Tech Used ----------------- None Achievements -------------- None Challenges ------------ None Game ------ Seed GuidedAntigravPurifier Manual? 0 Play Time 00:30:09 Cumulative 6.4 hours Start 2023.05.25 @ 22:20:11 End 2023.05.25 @ 22:51:55 Sessions 1 Manual Loads 0 Difficulty Rogue Special Mode None Game No. 11 Rogue 11 Adventurer 0 Explorer 0 Win Type - Total 0 Types 0/0/0/0/0/0/0/0/0 Lore% 7 Gallery% 13 Achievement% 9 Wizard Run 0 Options --------- ASCII 0 Keyboard 0 Movement Mouse Keybinds 0 Fullscreen 2 Font 18/X11 Map View 76x50 Tactical HUD 1 Map Filters NONE Filters NONE Steam 1 RUN: fed2d1cd-bd8f-4483-8c81-8452995099be